{"text_format":"1","workbook":"xlsx","n_sheets":3,"sheets":["Dashboard","Bodega de datos","Tablas dinámicas"],"not_rendered":{"charts":5,"images":31,"macros":1,"external_links":1,"defined_names":1,"comments":0,"pivot_tables":14},"unopened":[],"bounds":{"document_bytes":16777216,"sheet_cells":100000,"rows_first":2000,"rows_last":500,"rows_between":2000,"halvings":0,"cell_chars":16384,"cell_head_chars":4096},"cells_cut":0,"cells_raw":0,"read":"whole","date_system":"1900"}

{"sheet":"Dashboard","index":0,"n_rows":49,"n_cols":21,"rows_kept":49,"cut":false,"hidden":false,"merged":[[48,20,49,23]]}
[]
[]
[]
[]
[]
[]
[]
[]
[]
[]
[]
[]
[]
[]
[]
[]
[]
[]
[]
[]
[]
[]
[]
[]
[]
[]
[]
[]
[]
[]
[]
[]
[]
[]
[]
[]
[]
[]
[]
[]
[]
[]
[]
[]
[]
[]
[]
[]
[null,null,null,null,null,null,null,null,null,null,null,null,null,null,null,null,null,null,null,null,"Actualizar base de datos"]

{"sheet":"Bodega de datos","index":1,"n_rows":16,"n_cols":45,"rows_kept":16,"cut":false,"hidden":false,"merged":[[1,33,1,43],[1,1,1,8],[1,11,1,21],[1,23,1,32],[0,1,0,2]]}
[null,"Actualizar tabla "]
[null,"Canal de atención a la ciudadanía",null,null,null,null,null,null,null,null,null,"Entidad destinataria de la pqrsd que se está trasladando",null,null,null,null,null,null,null,null,null,null,null,"Tipología de las pqrs pendientes de trámite",null,null,null,null,null,null,null,null,null,"PQRSD pendientes de trámite por dependencia del DADEP"]
["Mes","Presencial","Telefónico","Redes sociales","Chat","Correo electrónico","Ventanilla de radicación","Buzón de sugerencias","Bogotá te escucha","Pqrs recibidas","Pqrs trasladadas","Secretaría de Movilidad","Secretaría de Desarrollo Económico","Secretaría de Gobierno","Secretaría de Ambiente","Secretaría de Habitat","Instituto para la Economía Social - IPES","Instituto Distrital de Recreación y Deporte -IDRD","Instituto Distrital de Participación y Acción Comunal - IDPAC","Secretaría de Planeación","IDU","Otra entidad destinataria","Pqrs pendientes de trámite al final de cada mes","derecho de petición de interés particular","derecho de petición de interés general","reclamo","queja","solicitud de acceso a la información","consulta","felicitación","solicitud de copias","sugerencias","denuncia por actos de corrupción","Dirección","Subdirección de Registro Inmobiliario","Subdirección de Gestión Inmobiliaria y de Espacio Público","Subdirección de Gestión Corporativa","Oficina de  Control Disciplinario Interno","Oficina Jurídica","Oficina Asesora de Planeación","Oficina Asesora de Comunicaciones ","Atención a la ciudadanía","Control Interno","total","Columna1"]
["enero",79,185,5,41,1268,3,0,357,357,258,30,0,151,3,0,15,4,1,6,7,41,13,7,1,1,4,0,0,0,0,0,0,0,2,2,2,0,0,0,0,7,0,{"$f":"+Tabla1[[#This Row],[Dirección]]+Tabla1[[#This Row],[Subdirección de Registro Inmobiliario]]+Tabla1[[#This Row],[Subdirección de Gestión Inmobiliaria y de Espacio Público]]+Tabla1[[#This Row],[Oficina de  Control Disciplinario Interno]]+Tabla1[[#This Row],[Oficina Jurídica]]+Tabla1[[#This Row],[Oficina Asesora de Planeación]]+Tabla1[[#This Row],[Oficina Asesora de Comunicaciones ]]+Tabla1[[#This Row],[Control Interno]]+Tabla1[[#This Row],[Atención a la ciudadanía]]+Tabla1[[#This Row],[Subdirección de Gestión Corporativa]]","v":13},{"$f":"+Tabla1[[#This Row],[Pqrs pendientes de trámite al final de cada mes]]","v":13}]
["febrero",223,213,10,36,1277,4,0,466,466,322,36,0,191,3,0,32,10,1,1,14,34,32,13,10,0,3,0,5,0,0,0,1,0,0,22,0,1,2,0,0,7,0,{"$f":"+Tabla1[[#This Row],[Dirección]]+Tabla1[[#This Row],[Subdirección de Registro Inmobiliario]]+Tabla1[[#This Row],[Subdirección de Gestión Inmobiliaria y de Espacio Público]]+Tabla1[[#This Row],[Oficina de  Control Disciplinario Interno]]+Tabla1[[#This Row],[Oficina Jurídica]]+Tabla1[[#This Row],[Oficina Asesora de Planeación]]+Tabla1[[#This Row],[Oficina Asesora de Comunicaciones ]]+Tabla1[[#This Row],[Control Interno]]+Tabla1[[#This Row],[Atención a la ciudadanía]]+Tabla1[[#This Row],[Subdirección de Gestión Corporativa]]","v":32},{"$f":"+Tabla1[[#This Row],[Pqrs pendientes de trámite al final de cada mes]]","v":32}]
["marzo",102,180,10,27,1219,8,0,391,391,274,2,1,168,7,1,47,6,1,0,13,28,56,13,24,1,4,0,7,0,0,1,6,0,2,34,0,6,0,0,0,14,0,{"$f":"+[1]!Tabla1[[#This Row],[Dirección]]+[1]!Tabla1[[#This Row],[Subdirección de Registro Inmobiliario]]+[1]!Tabla1[[#This Row],[Subdirección de Gestión Inmobiliaria y de Espacio Público]]+[1]!Tabla1[[#This Row],[Oficina de  Control Disciplinario Interno]]+[1]!Tabla1[[#This Row],[Oficina Jurídica]]+[1]!Tabla1[[#This Row],[Oficina Asesora de Planeación]]+[1]!Tabla1[[#This Row],[Oficina Asesora de Comunicaciones ]]+[1]!Tabla1[[#This Row],[Control Interno]]+[1]!Tabla1[[#This Row],[Atención a la ciudadanía]]+[1]!Tabla1[[#This Row],[Subdirección de Gestión Corporativa]]","v":56},{"$f":"SUM([1]!Tabla1[[#This Row],[derecho de petición de interés particular]:[denuncia por actos de corrupción]])","v":56}]
["abril",null,null,null,null,null,null,null,null,null,null,null,null,null,null,null,null,null,null,null,null,null,null,null,null,null,null,null,null,null,null,null,null,null,null,null,null,null,null,null,null,null,null,{"$f":"+Tabla1[[#This Row],[Dirección]]+Tabla1[[#This Row],[Subdirección de Registro Inmobiliario]]+Tabla1[[#This Row],[Subdirección de Gestión Inmobiliaria y de Espacio Público]]+Tabla1[[#This Row],[Oficina de  Control Disciplinario Interno]]+Tabla1[[#This Row],[Oficina Jurídica]]+Tabla1[[#This Row],[Oficina Asesora de Planeación]]+Tabla1[[#This Row],[Oficina Asesora de Comunicaciones ]]+Tabla1[[#This Row],[Control Interno]]+Tabla1[[#This Row],[Atención a la ciudadanía]]+Tabla1[[#This Row],[Subdirección de Gestión Corporativa]]","v":0},{"$f":"+Tabla1[[#This Row],[Pqrs pendientes de trámite al final de cada mes]]","v":0}]
["mayo",null,null,null,null,null,null,null,null,null,null,null,null,null,null,null,null,null,null,null,null,null,null,null,null,null,null,null,null,null,null,null,null,null,null,null,null,null,null,null,null,null,null,{"$f":"+Tabla1[[#This Row],[Dirección]]+Tabla1[[#This Row],[Subdirección de Registro Inmobiliario]]+Tabla1[[#This Row],[Subdirección de Gestión Inmobiliaria y de Espacio Público]]+Tabla1[[#This Row],[Oficina de  Control Disciplinario Interno]]+Tabla1[[#This Row],[Oficina Jurídica]]+Tabla1[[#This Row],[Oficina Asesora de Planeación]]+Tabla1[[#This Row],[Oficina Asesora de Comunicaciones ]]+Tabla1[[#This Row],[Control Interno]]+Tabla1[[#This Row],[Atención a la ciudadanía]]+Tabla1[[#This Row],[Subdirección de Gestión Corporativa]]","v":0},{"$f":"+Tabla1[[#This Row],[Pqrs pendientes de trámite al final de cada mes]]","v":0}]
["junio",null,null,null,null,null,null,null,null,null,null,null,null,null,null,null,null,null,null,null,null,null,null,null,null,null,null,null,null,null,null,null,null,null,null,null,null,null,null,null,null,null,null,{"$f":"+Tabla1[[#This Row],[Dirección]]+Tabla1[[#This Row],[Subdirección de Registro Inmobiliario]]+Tabla1[[#This Row],[Subdirección de Gestión Inmobiliaria y de Espacio Público]]+Tabla1[[#This Row],[Oficina de  Control Disciplinario Interno]]+Tabla1[[#This Row],[Oficina Jurídica]]+Tabla1[[#This Row],[Oficina Asesora de Planeación]]+Tabla1[[#This Row],[Oficina Asesora de Comunicaciones ]]+Tabla1[[#This Row],[Control Interno]]+Tabla1[[#This Row],[Atención a la ciudadanía]]+Tabla1[[#This Row],[Subdirección de Gestión Corporativa]]","v":0},{"$f":"+Tabla1[[#This Row],[Pqrs pendientes de trámite al final de cada mes]]","v":0}]
["julio",null,null,null,null,null,null,null,null,null,null,null,null,null,null,null,null,null,null,null,null,null,null,null,null,null,null,null,null,null,null,null,null,null,null,null,null,null,null,null,null,null,null,{"$f":"+Tabla1[[#This Row],[Dirección]]+Tabla1[[#This Row],[Subdirección de Registro Inmobiliario]]+Tabla1[[#This Row],[Subdirección de Gestión Inmobiliaria y de Espacio Público]]+Tabla1[[#This Row],[Oficina de  Control Disciplinario Interno]]+Tabla1[[#This Row],[Oficina Jurídica]]+Tabla1[[#This Row],[Oficina Asesora de Planeación]]+Tabla1[[#This Row],[Oficina Asesora de Comunicaciones ]]+Tabla1[[#This Row],[Control Interno]]+Tabla1[[#This Row],[Atención a la ciudadanía]]+Tabla1[[#This Row],[Subdirección de Gestión Corporativa]]","v":0},{"$f":"+Tabla1[[#This Row],[Pqrs pendientes de trámite al final de cada mes]]","v":0}]
["agosto",null,null,null,null,null,null,null,null,null,null,null,null,null,null,null,null,null,null,null,null,null,null,null,null,null,null,null,null,null,null,null,null,null,null,null,null,null,null,null,null,null,null,{"$f":"+Tabla1[[#This Row],[Dirección]]+Tabla1[[#This Row],[Subdirección de Registro Inmobiliario]]+Tabla1[[#This Row],[Subdirección de Gestión Inmobiliaria y de Espacio Público]]+Tabla1[[#This Row],[Oficina de  Control Disciplinario Interno]]+Tabla1[[#This Row],[Oficina Jurídica]]+Tabla1[[#This Row],[Oficina Asesora de Planeación]]+Tabla1[[#This Row],[Oficina Asesora de Comunicaciones ]]+Tabla1[[#This Row],[Control Interno]]+Tabla1[[#This Row],[Atención a la ciudadanía]]+Tabla1[[#This Row],[Subdirección de Gestión Corporativa]]","v":0},{"$f":"+Tabla1[[#This Row],[Pqrs pendientes de trámite al final de cada mes]]","v":0}]
["septiembre",null,null,null,null,null,null,null,null,null,null,null,null,null,null,null,null,null,null,null,null,null,null,null,null,null,null,null,null,null,null,null,null,null,null,null,null,null,null,null,null,null,null,{"$f":"+Tabla1[[#This Row],[Dirección]]+Tabla1[[#This Row],[Subdirección de Registro Inmobiliario]]+Tabla1[[#This Row],[Subdirección de Gestión Inmobiliaria y de Espacio Público]]+Tabla1[[#This Row],[Oficina de  Control Disciplinario Interno]]+Tabla1[[#This Row],[Oficina Jurídica]]+Tabla1[[#This Row],[Oficina Asesora de Planeación]]+Tabla1[[#This Row],[Oficina Asesora de Comunicaciones ]]+Tabla1[[#This Row],[Control Interno]]+Tabla1[[#This Row],[Atención a la ciudadanía]]+Tabla1[[#This Row],[Subdirección de Gestión Corporativa]]","v":0},{"$f":"+Tabla1[[#This Row],[Pqrs pendientes de trámite al final de cada mes]]","v":0}]
["octubre",null,null,null,null,null,null,null,null,null,null,null,null,null,null,null,null,null,null,null,null,null,null,null,null,null,null,null,null,null,null,null,null,null,null,null,null,null,null,null,null,null,null,{"$f":"+Tabla1[[#This Row],[Dirección]]+Tabla1[[#This Row],[Subdirección de Registro Inmobiliario]]+Tabla1[[#This Row],[Subdirección de Gestión Inmobiliaria y de Espacio Público]]+Tabla1[[#This Row],[Oficina de  Control Disciplinario Interno]]+Tabla1[[#This Row],[Oficina Jurídica]]+Tabla1[[#This Row],[Oficina Asesora de Planeación]]+Tabla1[[#This Row],[Oficina Asesora de Comunicaciones ]]+Tabla1[[#This Row],[Control Interno]]+Tabla1[[#This Row],[Atención a la ciudadanía]]+Tabla1[[#This Row],[Subdirección de Gestión Corporativa]]","v":0},{"$f":"+Tabla1[[#This Row],[Pqrs pendientes de trámite al final de cada mes]]","v":0}]
["noviembre",null,null,null,null,null,null,null,null,null,null,null,null,null,null,null,null,null,null,null,null,null,null,null,null,null,null,null,null,null,null,null,null,null,null,null,null,null,null,null,null,null,null,{"$f":"+Tabla1[[#This Row],[Dirección]]+Tabla1[[#This Row],[Subdirección de Registro Inmobiliario]]+Tabla1[[#This Row],[Subdirección de Gestión Inmobiliaria y de Espacio Público]]+Tabla1[[#This Row],[Oficina de  Control Disciplinario Interno]]+Tabla1[[#This Row],[Oficina Jurídica]]+Tabla1[[#This Row],[Oficina Asesora de Planeación]]+Tabla1[[#This Row],[Oficina Asesora de Comunicaciones ]]+Tabla1[[#This Row],[Control Interno]]+Tabla1[[#This Row],[Atención a la ciudadanía]]+Tabla1[[#This Row],[Subdirección de Gestión Corporativa]]","v":0},{"$f":"+Tabla1[[#This Row],[Pqrs pendientes de trámite al final de cada mes]]","v":0}]
["diciembre",null,null,null,null,null,null,null,null,null,null,null,null,null,null,null,null,null,null,null,null,null,null,null,null,null,null,null,null,null,null,null,null,null,null,null,null,null,null,null,null,null,null,{"$f":"+Tabla1[[#This Row],[Dirección]]+Tabla1[[#This Row],[Subdirección de Registro Inmobiliario]]+Tabla1[[#This Row],[Subdirección de Gestión Inmobiliaria y de Espacio Público]]+Tabla1[[#This Row],[Oficina de  Control Disciplinario Interno]]+Tabla1[[#This Row],[Oficina Jurídica]]+Tabla1[[#This Row],[Oficina Asesora de Planeación]]+Tabla1[[#This Row],[Oficina Asesora de Comunicaciones ]]+Tabla1[[#This Row],[Control Interno]]+Tabla1[[#This Row],[Atención a la ciudadanía]]+Tabla1[[#This Row],[Subdirección de Gestión Corporativa]]","v":0},{"$f":"+Tabla1[[#This Row],[Pqrs pendientes de trámite al final de cada mes]]","v":0}]
["Acumulado año",{"$f":"+B4+B5+B6+B7+B8+B9+B10+B11+B12+B13+B14+B15","v":404},{"$f":"+C4+C5+C6+C7+C8+C9+C10+C11+C12+C13+C14+C15","v":578},25,104,3764,15,0,{"$f":"+I4+I5+I6+I7+I8+I9+I10+I11+I12+I13+I14+I15","v":1214},{"$f":"+J15+J14+J13+J12+J11+J10+J9+J7+J8+J6+J5+J4","v":1214},{"$f":"+K15+K14+K13+K12+K11+K10+K9+K8+K7+K6+K5+K4","v":854},68,1,510,13,1,94,20,3,null,null,103,101,33,35,2,11,0,12,0,0,1,7,0,4,58,2,7,2,0,0,28,0,{"$f":"+AR15+AR14+AR13+AR12+AR11+AR10+AR9+AR8+AR7+AR6+AR5+AR4","v":101},{"$f":"+Tabla1[[#This Row],[Pqrs pendientes de trámite al final de cada mes]]","v":101}]

{"sheet":"Tablas dinámicas","index":2,"n_rows":109,"n_cols":11,"rows_kept":109,"cut":false,"hidden":false,"merged":[[0,6,2,9],[0,1,1,4],[2,1,2,4]]}
[null,"Regresar "]
[]
[null,"al Dashboard"]
["Cantidad de atenciones brindadas a la ciudadanía por canal"]
[]
["Etiquetas de fila","Suma de Presencial",null,"Etiquetas de fila","Suma de Telefónico",null,"Etiquetas de fila","Suma de Redes sociales",null,"Etiquetas de fila","Suma de Chat"]
["marzo",102,null,"marzo",180,null,"marzo",10,null,"marzo",27]
["Total general",102,null,"Total general",180,null,"Total general",10,null,"Total general",27]
[]
[]
[]
[]
[]
[]
[]
[]
[]
[]
[]
[]
[null,{"$f":"+GETPIVOTDATA(\"Presencial\",$A$6)","v":102}]
[]
["Etiquetas de fila","Suma de Correo electrónico",null,"Etiquetas de fila","Suma de Ventanilla de radicación",null,"Etiquetas de fila","Suma de Buzón de sugerencias",null,"Etiquetas de fila","Suma de Bogotá te escucha"]
["marzo",1219,null,"marzo",8,null,"marzo",0,null,"marzo",391]
["Total general",1219,null,"Total general",8,null,"Total general",0,null,"Total general",391]
[]
[]
[]
[]
[]
[]
[]
[]
[]
[]
[]
[]
[]
[]
["Cantidad de PQRS recibidas y trasladadas"]
[]
["Etiquetas de fila","Suma de Pqrs recibidas",null,"Etiquetas de fila","Suma de Pqrs trasladadas",null,null,"Etiquetas de columna"]
["marzo",391,null,"marzo",274,null,"Valores","marzo","Total general"]
["Total general",391,null,"Total general",274,null,"Secretaría de Movilidad.",2,2]
[null,null,null,null,null,null,"Secretaría de Desarrollo Económico.",1,1]
[null,null,null,null,null,null,"Secretaría de Gobierno.",168,168]
[null,null,null,null,null,null,"Secretaría de Ambiente.",7,7]
[null,null,null,null,null,null,"Recreación y Deporte -IDRD.",6,6]
[null,null,null,null,null,null,"Participación y Acción Comunal - IDPAC.",1,1]
[null,null,null,null,null,null,"Instituto para la Economía Social - IPES.",47,47]
[null,null,null,null,null,null,"Suma de Secretaría de Habitat",1,1]
[null,null,null,null,null,null,"Suma de Secretaría de Planeación",0,0]
[null,null,null,null,null,null,"Suma de Otra entidad destinataria",28,28]
[null,null,null,null,null,null,"Suma de IDU",13,13]
[]
[]
[]
[]
["Cantidad de PQRSD por tipología pendientes de trámite"]
[]
[null,"Etiquetas de columna"]
["Valores","marzo","Total general"]
["Derecho de petición de interés particular.",13,13]
["Derecho de petición de interés general.",24,24]
["Reclamo.",1,1]
["Queja.",4,4]
["Solicitud de acceso a la información.",0,0]
["Consulta.",7,7]
["Felicitación.",0,0]
["Solicitud de copias.",0,0]
["Sugerencias.",1,1]
["Denuncia por actos de corrupción.",6,6]
[]
[]
["PQRSD pendientes de trámite al final del mes"]
[]
["Etiquetas de fila","Pqrs pendientes de trámite al final de cada mes."]
["marzo",56]
["Total general",56]
[]
[]
[]
[]
[]
[]
[]
[]
[]
[]
[]
[]
[]
[]
[]
[]
[]
[]
[]
[]
[]
[]
[]
[]
[]
[]
[]
[]
["Etiquetas de columna"]
["marzo","Total general"]